fUST/lending_fUST_20241024
["ID","MTS","AMOUNT","RATE_DAILY","PERIOD"]
[340728044,1729733442029,-999.33,0.00035616,30]
[340728045,1729733442039,-500.0,0.00035616,30]
[340728046,1729733442049,-500.0,0.00035616,30]
[340728047,1729733442060,-500.0,0.00035616,30]
[340728048,1729733442075,-500.0,0.00035616,30]
[340728049,1729733442088,-510.58624193,0.00035616,30]
[340728050,1729733442099,-500.0,0.00035616,30]
[340728051,1729733442114,-495.74932171,0.00035616,30]
[340728052,1729733442128,-500.0,0.00035616,30]
[340728053,1729733442141,-500.0,0.00035616,30]
[340728054,1729733442152,-861.23,0.00035616,30]
[340728055,1729733442163,-500.0,0.00035616,30]
[340728056,1729733442174,-500.0,0.00035616,30]
[340728057,1729733442187,-500.0,0.00035616,30]
[340728058,1729733442199,-165.69129449,0.00035616,30]
[340728059,1729733442212,-500.0,0.00035616,30]
[340728060,1729733442224,-500.0,0.00035616,30]
[340728061,1729733442237,-500.0,0.00035616,30]
[340728062,1729733442248,-1057.26,0.00035616,30]
[340728063,1729733442260,-500.0,0.00035616,30]
[340728064,1729733442272,-500.0,0.00035616,30]
[340728065,1729733442283,-500.0,0.00035616,30]
[340728066,1729733442295,-500.0,0.00035616,30]
[340728067,1729733442307,-741.79,0.00035616,30]
[340728068,1729733442319,-500.0,0.00035616,30]
[340728069,1729733442330,-584.2,0.00035616,30]
[340728070,1729733442342,-500.0,0.00035616,30]
[340728071,1729733442354,-500.0,0.00035616,30]
[340728072,1729733442366,-151.0,0.00035616,14]
[340728073,1729733442377,-504.14143081,0.00035616,30]
[340728074,1729733442390,-500.0,0.00035616,30]
[340728075,1729733442402,-814.22,0.00035616,30]
[340728076,1729733442414,-500.0,0.00035616,30]
[340728077,1729733442425,-500.0,0.00035616,30]
[340728078,1729733442437,-500.0,0.00035616,30]
[340728079,1729733442449,-500.0,0.00035616,30]
[340728080,1729733442461,-500.0,0.00035616,30]
[340728081,1729733442473,-500.0,0.00035616,30]
[340728082,1729733442484,-502.45490216,0.00035616,30]
[340728083,1729733442496,-500.0,0.00035616,30]
[340728084,1729733442508,-500.0,0.00035616,30]
[340728085,1729733442520,-2609.17,0.00035616,30]
[340728086,1729733442533,-500.0,0.00035616,30]
[340728087,1729733442545,-500.0,0.00035616,30]
[340728088,1729733442558,-500.0,0.00035616,30]
[340728089,1729733442569,-500.0,0.00035616,30]
[340728090,1729733442581,-500.0,0.00035616,30]
[340728091,1729733442593,-1408.26,0.00035616,30]
[340728092,1729733442609,-178.7590904,0.00035616,30]
[340728093,1729733442621,-500.0,0.00035616,30]
[340728094,1729733442634,-726.94,0.00035616,30]
[340728095,1729733442646,-1137.31,0.00035616,30]
[340728096,1729733442658,-500.0,0.00035616,30]
[340728097,1729733442669,-500.0,0.00035616,30]
[340728098,1729733442682,-500.0,0.00035616,30]
[340728099,1729733442693,-500.94580795,0.00035616,30]
[340728100,1729733442704,-1000.0,0.00035616,30]
[340728101,1729733442716,-501.11873683,0.00035616,30]
[340728102,1729733442727,-500.0,0.00035616,10]
[340728103,1729733442739,-586.47,0.00035616,30]
[340728104,1729733442751,-500.0,0.00035616,30]
[340728105,1729733442763,-500.0,0.00035616,30]
[340728106,1729733442774,-502.2513309,0.00035616,30]
[340728107,1729733442786,-572.11,0.00035616,30]
[340728108,1729733442798,-500.0,0.00035616,30]
[340728109,1729733442809,-204.14278931,0.00035616,30]
[340728110,1729733442821,-500.0,0.00035616,30]
[340728111,1729733442833,-500.0,0.00035616,30]
[340728112,1729733442845,-500.0,0.00035616,30]
[340728113,1729733442856,-500.0,0.00035616,30]
[340728114,1729733442869,-500.0,0.00035616,30]
[340728115,1729733442882,-847.99,0.00035616,30]
[340728116,1729733442894,-729.47,0.00035616,30]
[340728117,1729733442906,-1941.78,0.00035616,30]
[340728118,1729733442917,-500.0,0.00035616,30]
[340728119,1729733442929,-504.85293994,0.00035616,30]
[340728120,1729733442940,-500.0,0.00035616,30]
[340728121,1729733442952,-500.0,0.00035616,30]
[340728122,1729733442964,-500.0,0.00035616,30]
[340728123,1729733442975,-500.0,0.00035616,30]
[340728124,1729733442987,-500.0,0.00035616,5]
[340728125,1729733442999,-500.0,0.00035616,30]
[340728126,1729733443011,-500.0,0.00035616,30]
[340728127,1729733443023,-500.0,0.00035616,30]
[340728128,1729733443035,-500.0,0.00035616,30]
[340728129,1729733443047,-500.0,0.00035616,30]
[340728130,1729733443060,-500.0,0.00035616,30]
[340728131,1729733443072,-500.76838464,0.00035616,30]
[340728132,1729733443084,-500.0,0.00035616,30]
[340728133,1729733443096,-500.0,0.00035616,30]
[340728134,1729733443110,-500.0,0.00035616,30]
[340728135,1729733443122,-500.0,0.00035616,30]
[340728136,1729733443136,-500.0,0.00035616,30]
[340728137,1729733443148,-500.0,0.00035616,30]
[340728138,1729733443160,-500.0,0.00035616,30]
[340728139,1729733443172,-578.71219577,0.00035616,30]
[340728140,1729733443184,-500.0,0.00035616,30]
[340728141,1729733443195,-1297.16,0.00035616,30]
[340728142,1729733443208,-500.0,0.00035616,30]
[340728143,1729733443219,-307.42586446,0.00035616,30]
[340728144,1729733443231,-457.24984663,0.00035616,30]
[340728145,1729733443242,-355.6065399,0.00035616,30]
[340728146,1729733443254,-500.0,0.00035616,30]
[340728147,1729733443266,-519.06674851,0.00035616,30]
[340728148,1729733443278,-500.0,0.00035616,30]
[340728149,1729733443289,-668.21,0.00035616,30]
[340728150,1729733443299,-500.0,0.00035616,30]
[340728151,1729733443308,-500.0,0.00035616,30]
[340728152,1729733443317,-500.0,0.00035616,30]
[340728153,1729733443327,-1325.06,0.00035616,30]
[340728154,1729733443336,-500.0,0.00035616,30]
[340728155,1729733443345,-500.0,0.00035616,30]
[340728156,1729733443354,-500.0,0.00035616,30]
[340728157,1729733443364,-602.8336768,0.00035616,2]
[340728158,1729733443373,-670.79,0.00035616,30]
[340728159,1729733443384,-500.0,0.00035616,30]
[340728161,1729733443394,-500.0,0.00035616,30]
[340728162,1729733443403,-537.07859428,0.00035616,30]
[340728163,1729733443413,-600.09,0.00035616,30]
[340728164,1729733443657,-512.83,0.00035616,30]
[340728165,1729733443709,-500.0,0.00035616,30]
[340728166,1729733443733,-500.0,0.00035616,30]
[340728167,1729733443743,-1615.04,0.00035616,30]
[340728168,1729733443752,-500.0,0.00035616,30]
[340728169,1729733443761,-500.0,0.00035616,30]
[340728170,1729733443770,-500.0,0.00035616,30]
[340728171,1729733443779,-500.0,0.00035616,30]
[340728172,1729733443788,-649.33,0.00035616,30]
[340728173,1729733443797,-501.40227472,0.00035616,30]
[340728174,1729733443806,-200.0,0.00035616,30]
[340728175,1729733443816,-541.51606208,0.00035616,30]
[340728176,1729733443825,-500.0,0.00035616,30]
[340728177,1729733443834,-502.46957456,0.00035616,30]
[340728178,1729733443843,-500.0,0.00035616,30]
[340728179,1729733443852,-500.0,0.00035616,30]
[340728180,1729733443861,-500.0,0.00035616,30]
[340728181,1729733443870,-1018.15,0.00035616,2]
[340728182,1729733443881,-500.0,0.00035616,30]
[340728183,1729733443890,-465.39530781,0.00035616,30]
[340728184,1729733443900,-501.91980637,0.00035616,30]
[340728185,1729733443909,-500.0,0.00035616,30]
[340728186,1729733443919,-500.0,0.00035616,30]
[340728187,1729733443929,-500.0,0.00035616,30]
[340728188,1729733443938,-500.0,0.00035616,30]
[340728189,1729733443948,-500.0,0.00035616,30]
[340728190,1729733443958,-500.0,0.00035616,30]
[340728191,1729733443969,-520.89,0.00035616,30]
[340728192,1729733443978,-500.0,0.00035616,30]
[340728193,1729733443988,-500.0,0.00035616,30]
[340728194,1729733443998,-500.0,0.00035616,30]
[340728195,1729733444007,-500.0,0.00035616,30]
[340728196,1729733444017,-500.0,0.00035616,7]
[340728197,1729733444026,-610.87,0.00035616,30]
[340728198,1729733444035,-605.31,0.00035616,30]
[340728199,1729733444045,-500.0,0.00035616,30]
[340728200,1729733444055,-151.0,0.00035616,14]
[340728201,1729733444064,-151.655907,0.00035616,14]
[340728202,1729733444073,-545.23962103,0.00035616,30]
[340728203,1729733444082,-1355.35,0.00035616,30]
[340728204,1729733444091,-500.0,0.00035616,30]
[340728205,1729733444100,-266.43371449,0.00035616,30]
[340728206,1729733444113,-500.0,0.00035616,30]
[340728207,1729733444123,-500.0,0.00035616,30]
[340728208,1729733444134,-343.89895922,0.00035616,30]
[340728209,1729733444144,-500.0,0.00035616,30]
[340728210,1729733444155,-500.0,0.00035616,30]
[340728211,1729733444165,-500.0,0.00035616,30]
[340728212,1729733444174,-500.0,0.00035616,30]
[340728213,1729733444185,-500.0,0.00035616,30]
[340728214,1729733444194,-500.0,0.00035616,30]
[340728215,1729733444204,-500.0,0.00035616,30]
[340728216,1729733444213,-1952.53,0.00035616,30]
[340728217,1729733444223,-980.73,0.00035616,30]
[340728218,1729733444232,-500.0,0.00035616,30]
[340728219,1729733444242,-500.0,0.00035616,30]
[340728220,1729733444252,-500.0,0.00035616,30]
[340728221,1729733444261,-500.0,0.00035616,30]
[340728222,1729733444271,-500.0,0.00035616,30]
[340728223,1729733444281,-500.0,0.00035616,30]
[340728224,1729733444292,-500.0,0.00035616,30]
[340728225,1729733444302,-185.78244594,0.00035616,30]
[340728226,1729733444313,-500.0,0.00035616,30]
[340728227,1729733444322,-500.0,0.00035616,30]
[340728228,1729733444333,-500.0,0.00035616,30]
[340728229,1729733444343,-1248.07,0.00035616,30]
[340728230,1729733444354,-500.0,0.00035616,30]
[340728231,1729733444364,-662.58,0.00035616,30]
[340728232,1729733444373,-960.98,0.00035616,30]
[340728233,1729733444384,-505.78,0.00035616,30]
[340728234,1729733444394,-500.0,0.00035616,30]
[340728235,1729733444403,-500.0,0.00035616,30]
[340728236,1729733444412,-500.0,0.00035616,30]
[340728237,1729733444421,-151.0,0.00035616,14]
[340728238,1729733444430,-151.0,0.00035616,14]
[340728239,1729733444440,-494.27690072,0.00035616,30]
[340728240,1729733444449,-154.52619043,0.00035616,14]
[340728241,1729733444460,-639.28,0.00035616,30]
[340728242,1729733444470,-500.0,0.00035616,30]
[340728243,1729733444479,-504.52,0.00035616,30]
[340728244,1729733444489,-500.0,0.00035616,30]
[340728245,1729733444498,-202.83670557,0.00035616,30]
[340728246,1729733444507,-1475.06,0.00035616,30]
[340728247,1729733444516,-500.0,0.00035616,30]
[340728248,1729733444526,-500.0,0.00035616,30]
[340728249,1729733444536,-500.0,0.00035616,30]
[340728250,1729733444545,-500.0,0.00035616,30]
[340728251,1729733444555,-500.0,0.00035616,30]
[340728252,1729733444565,-500.0,0.00035616,30]
[340728253,1729733444574,-723.23,0.00035616,30]
[340728254,1729733444584,-500.0,0.00035616,2]
[340728255,1729733444595,-500.0,0.00035616,30]
[340728256,1729733444606,-500.0,0.00035616,30]
[340728257,1729733444616,-500.0,0.00035616,30]
[340728258,1729733444627,-1652.4,0.00035616,30]
[340728259,1729733444639,-354.31684747,0.00035616,30]
[340728260,1729733444648,-500.0,0.00035616,30]
[340728261,1729733444657,-809.76,0.00035616,30]
[340728262,1729733444666,-500.0,0.00035616,30]
[340728263,1729733444675,-500.0,0.00035616,30]
[340728264,1729733444686,-2028.83,0.00035616,30]
[340728265,1729733444695,-500.0,0.00035616,30]
[340728266,1729733444705,-500.0,0.00035616,30]
[340728267,1729733444714,-500.0,0.00035616,2]
[340728268,1729733444723,-500.0,0.00035616,30]
[340728269,1729733444732,-500.0,0.00035616,30]
[340728270,1729733444742,-151.0,0.00035616,14]
[340728271,1729733444751,-867.79,0.00035616,2]
[340728272,1729733444760,-867.79,0.00035616,2]
[340728273,1729733444770,-867.79,0.00035616,2]
[340728274,1729733444779,-500.0,0.00035616,30]
[340728275,1729733444788,-867.79,0.00035616,2]
[340728276,1729733444797,-867.79,0.00035616,2]
[340728277,1729733444806,-867.79,0.00035616,2]
[340728278,1729733444815,-867.79,0.00035616,2]
[340728279,1729733444824,-500.0,0.00035616,30]
[340728280,1729733444834,-867.79,0.00035616,2]
[340728281,1729733444843,-867.79,0.00035616,2]
[340728282,1729733444853,-500.0,0.00035616,30]
[340728283,1729733444862,-500.0,0.00035616,30]
[340728284,1729733444871,-867.79,0.00035616,2]
[340728285,1729733444884,-867.79,0.00035616,2]
[340728286,1729733444894,-867.79,0.00035616,2]
[340728287,1729733444904,-867.79,0.00035616,2]
[340728288,1729733444914,-867.79,0.00035616,2]
[340728289,1729733444924,-500.0,0.00035616,30]
[340728290,1729733444933,-500.0,0.00035616,30]
[340728291,1729733444943,-867.79,0.00035616,2]
[340728292,1729733444952,-867.79,0.00035616,2]
[340728293,1729733444962,-500.0,0.00035616,30]
[340728294,1729733444972,-867.79,0.00035616,2]
[340728295,1729733444982,-1796.97,0.00035616,30]
[340728296,1729733444991,-867.79,0.00035616,2]
[340728297,1729733445001,-867.79,0.00035616,2]
[340728298,1729733445011,-867.79,0.00035616,2]
[340728299,1729733445021,-500.0,0.00035616,30]
[340728300,1729733445034,-867.79,0.00035616,2]
[340728301,1729733445044,-867.79,0.00035616,2]
[340728302,1729733445054,-500.0,0.00035616,30]
[340728303,1729733445064,-867.79,0.00035616,2]
[340728304,1729733445073,-868.00443866,0.00035616,2]
[340728305,1729733445083,-766.78,0.00035616,30]
[340728306,1729733445094,-500.0,0.00035616,30]
[340728307,1729733445104,-2341.5,0.00035616,30]
[340728308,1729733445117,-501.98327072,0.00035616,30]
[340728309,1729733445126,-862.27,0.00035616,30]
[340728310,1729733445137,-500.0,0.00035616,30]
[340728311,1729733445147,-500.0,0.00035616,30]
[340728312,1729733445157,-500.0,0.00035616,30]
[340728313,1729733445167,-1300.37,0.00035616,30]
[340728314,1729733445177,-500.0,0.00035616,30]
[340728315,1729733445188,-222.89582534,0.00035616,30]
[340728316,1729733445200,-1020.29,0.00035616,30]
[340728317,1729733445211,-1761.82320068,0.00035616,30]
[340728318,1729733445531,-576.14679932,0.00035616,30]
[340728319,1729733445541,-500.0,0.00035616,30]
[340728320,1729733445551,-482.16288979,0.00035616,30]
[340728321,1729733445561,-500.0,0.00035616,30]
[340728322,1729733445571,-500.0,0.00035616,30]
[340728323,1729733445582,-863.37,0.00035616,30]
[340728324,1729733445592,-723.73,0.00035616,30]
[340728325,1729733445601,-500.0,0.00035616,30]
[340728326,1729733445611,-1508.63,0.00035616,7]
[340728327,1729733445621,-500.0,0.00035616,30]
[340728328,1729733445631,-798.81,0.00035616,30]
[340728329,1729733445647,-500.0,0.00035616,30]
[340728330,1729733445657,-500.0,0.00035616,30]
[340728331,1729733445667,-502.11768393,0.00035616,30]
[340728332,1729733445677,-515.02072095,0.00035616,30]
[340728333,1729733445687,-500.0,0.00035616,30]
[340728334,1729733445696,-500.0,0.00035616,30]
[340728335,1729733445706,-500.0,0.00035616,30]
[340728336,1729733445716,-1632.17,0.00035616,7]
[340728337,1729733445726,-1799.41,0.00035616,30]
[340728338,1729733445736,-154.66171354,0.00035616,30]
[340728339,1729733445745,-500.0,0.00035616,30]
[340728340,1729733445755,-500.0,0.00035616,30]
[340728341,1729733445764,-464.31363898,0.00035616,30]
[340728342,1729733445774,-851.35,0.00035616,30]
[340728343,1729733445784,-491.14728414,0.00035616,30]
[340728344,1729733445795,-3075.66,0.00035616,30]
[340728345,1729733445806,-506.02738506,0.00035616,30]
[340728346,1729733445817,-529.5527405,0.00035616,30]
[340728347,1729733445827,-500.0,0.00035616,30]
[340728348,1729733445836,-500.0,0.00035616,30]
[340728349,1729733445847,-898.49,0.00035616,30]
[340728350,1729733445858,-604.00392346,0.00035616,30]
[340728351,1729733445868,-2919.73,0.00035616,30]
[340728352,1729733445879,-1000.0,0.00035616,5]
[340728353,1729733445894,-500.0,0.00035616,30]
[340728354,1729733445904,-500.0,0.00035616,30]
[340728355,1729733445913,-1567.05,0.00035616,30]
[340728356,1729733445923,-1835.02,0.00035616,30]
[340728357,1729733445935,-617.27,0.00035616,30]
[340728358,1729733445946,-519.28567606,0.00035616,30]
[340728359,1729733445956,-513.99662514,0.00035616,30]
[340728360,1729733445966,-518.34510587,0.00035616,30]
[340728361,1729733445976,-927.57,0.00035616,30]
[340728362,1729733445986,-961.28,0.00035616,30]
[340728363,1729733445995,-542.98159364,0.00035616,30]
[340728364,1729733446004,-505.37074247,0.00035616,30]
[340728365,1729733446014,-500.0,0.00035616,30]
[340728366,1729733446023,-500.0,0.00035616,30]
[340728367,1729733446032,-514.32239121,0.00035616,30]
[340728368,1729733446043,-503.43625508,0.00035616,30]
[340728369,1729733446052,-1842.06,0.00035616,30]
[340728370,1729733446064,-638.2,0.00035616,30]
[340728371,1729733446073,-500.0,0.00035616,30]
[340728372,1729733446083,-500.0,0.00035616,30]
[340728373,1729733446093,-1457.51,0.00035616,30]
[340728375,1729733446104,-500.0,0.00035616,30]
[340728376,1729733446117,-802.83,0.00035616,30]
[340728377,1729733446127,-571.49773991,0.00035616,30]
[340728378,1729733446140,-2816.87,0.00035616,30]
[340728379,1729733446150,-1014.9,0.00035616,30]
[340728380,1729733446160,-839.67,0.00035616,30]
[340728381,1729733446169,-500.0,0.00035616,30]
[340728382,1729733446178,-500.0,0.00035616,30]
[340728383,1729733446187,-500.0,0.00035616,30]
[340728384,1729733446197,-500.0,0.00035616,30]
[340728385,1729733446207,-500.0,0.00035616,30]
[340728386,1729733446219,-500.0,0.00035616,30]
[340728387,1729733446229,-500.0,0.00035616,30]
[340728388,1729733446239,-542.94,0.00035616,30]
[340728389,1729733446250,-500.0,0.00035616,30]
[340728390,1729733446260,-801.43,0.00035616,30]
[340728391,1729733446270,-500.0,0.00035616,30]
[340728392,1729733446280,-151.0,0.00035616,14]
[340728393,1729733446290,-1381.58,0.00035616,30]
[340728394,1729733446299,-500.0,0.00035616,30]
[340728395,1729733446310,-500.0,0.00035616,30]
[340728396,1729733446322,-500.0,0.00035616,30]
[340728397,1729733446334,-500.0,0.00035616,30]
[340728398,1729733446343,-500.0,0.00035616,30]
[340728399,1729733446353,-313.22175905,0.00035616,30]
[340728400,1729733446363,-905.45288447,0.00035616,30]
[340728401,1729733446380,-950.18711553,0.00035616,30]
[340728402,1729733446391,-953.83,0.00035616,30]
[340728403,1729733446402,-500.0,0.00035616,30]
[340728404,1729733446411,-500.0,0.00035616,30]
[340728406,1729733446421,-2103.91,0.00035616,30]
[340728407,1729733446431,-500.0,0.00035616,30]
[340728409,1729733446442,-500.0,0.00035616,30]
[340728410,1729733446452,-500.0,0.00035616,30]
[340728411,1729733446463,-1953.59,0.00035616,30]
[340728412,1729733446474,-500.0,0.00035616,30]
[340728413,1729733446483,-500.0,0.00035616,10]
[340728414,1729733446494,-500.0,0.00035616,30]
[340728415,1729733446503,-502.45414059,0.00035616,30]
[340728416,1729733446512,-1968.87,0.00035616,30]
[340728417,1729733446521,-500.0,0.00035616,30]
[340728418,1729733446531,-335.28046012,0.00035616,30]
[340728419,1729733446542,-1545.77,0.00035616,30]
[340728420,1729733446552,-500.0,0.00035616,30]
[340728421,1729733446562,-945.53,0.00035616,30]
[340728422,1729733446572,-963.15,0.00035616,30]
[340728423,1729733446582,-500.0,0.00035616,30]
[340728424,1729733446592,-500.0,0.00035616,30]
[340728426,1729733446602,-500.0,0.00035616,30]
[340728427,1729733446613,-250.0,0.00035616,30]
[340728428,1729733446624,-500.0,0.00035616,30]
[340728429,1729733446637,-525.59024304,0.00035616,30]
[340728430,1729733446647,-500.0,0.00035616,30]
[340728431,1729733446656,-500.0,0.00035616,30]
[340728432,1729733446666,-1738.25,0.00035616,30]
[340728433,1729733446677,-500.0,0.00035616,30]
[340728434,1729733446687,-500.0,0.00035616,30]
[340728435,1729733446698,-503.25535096,0.00035616,30]
[340728436,1729733446708,-240.52772073,0.00035616,30]
[340728437,1729733446718,-1791.45,0.00035616,30]
[340728438,1729733446727,-500.0,0.00035616,30]
[340728439,1729733446737,-500.0,0.00035616,30]
[340728440,1729733446750,-775.55,0.00035616,30]
[340728441,1729733446762,-500.0,0.00035616,30]
[340728442,1729733446772,-500.0,0.00035616,30]
[340728443,1729733446782,-500.0,0.00035616,2]
[340728444,1729733446791,-500.0,0.00035616,30]
[340728445,1729733446802,-500.0,0.00035616,30]
[340728446,1729733446979,-500.0,0.00035616,30]
[340728447,1729733446990,-500.0,0.00035616,30]
[340728448,1729733447000,-942.94,0.00035616,30]
[340728449,1729733447011,-505.12069391,0.00035616,30]
[340728450,1729733447021,-500.0,0.00035616,30]
[340728451,1729733447030,-504.13019052,0.00035616,30]
[340728452,1729733447040,-500.0,0.00035616,30]
[340728453,1729733447049,-1650.89,0.00035616,30]
[340728454,1729733447060,-509.81864182,0.00035616,30]
[340728455,1729733447069,-500.0,0.00035616,30]
[340728456,1729733447079,-500.0,0.00035616,30]
[340728457,1729733447089,-500.0,0.00035616,30]
[340728458,1729733447098,-1613.54,0.00035616,30]
[340728459,1729733447108,-500.0,0.00035616,30]
[340728460,1729733447121,-404.54251095,0.00035616,30]
[340728461,1729733447497,-151.0,0.00035606,14]
[340728462,1729733447507,-188.04126346,0.00035615,2]
[340728463,1729733447517,-95.45748905,0.00035616,30]
[340728464,1729733447527,-85.94124749,0.00035616,30]
[340728465,1729733448141,-815.38,0.00035606,10]
[340728466,1729733448151,-414.05875251,0.00035616,30]
[340728467,1729733448161,-359.93930305,0.00035616,30]
[340728468,1729733448171,-500.0,0.00035616,30]
[340728469,1729733448181,-580.46106847,0.00035616,30]
[340728470,1729733448190,-500.0,0.00035616,30]
[340728471,1729733448199,-576.64370111,0.00035616,30]
[340728472,1729733448208,-500.0,0.00035616,30]
[340728473,1729733448218,-500.0,0.00035616,30]
[340728474,1729733448227,-500.0,0.00035616,30]
[340728475,1729733448236,-500.0,0.00035616,30]
[340728476,1729733448246,-500.0,0.00035616,30]
[340728477,1729733448256,-500.0,0.00035616,30]
[340728478,1729733448266,-271.95324155,0.00035616,30]
[340728479,1729733448275,-503.24600084,0.00035616,30]
[340728480,1729733448286,-1117.68,0.00035616,30]
[340728481,1729733448296,-500.0,0.00035616,7]
[340728482,1729733448306,-500.0,0.00035616,30]
[340728483,1729733448316,-2526.8,0.00035616,30]
[340728484,1729733448325,-2049.93,0.00035616,30]
[340728485,1729733448335,-500.000001,0.00035616,30]
[340728486,1729733448344,-1706.01,0.00035616,30]
[340728487,1729733448354,-372.51049435,0.00035616,30]
[340728488,1729733448365,-1000.0,0.00035616,30]
[340728489,1729733448375,-573.38653612,0.00035616,30]
[340728490,1729733448386,-509.3706027,0.00035616,30]
[340728491,1729733448396,-1019.31,0.00035616,30]
[340728492,1729733448405,-500.0,0.00035616,30]
[340728493,1729733448415,-702.22,0.00035616,30]
[340728494,1729733448425,-500.0,0.00035616,30]
[340728495,1729733448435,-609.66,0.00035616,30]
[340728496,1729733448444,-500.0,0.00035616,30]
[340728497,1729733448453,-500.0,0.00035616,30]
[340728498,1729733448463,-808.6,0.00035616,30]
[340728499,1729733448473,-1784.4,0.00035616,30]
[340728500,1729733448483,-500.0,0.00035616,30]
[340728501,1729733448493,-500.0,0.00035616,30]
[340728502,1729733448502,-500.0,0.00035616,30]
[340728503,1729733448511,-500.0,0.00035616,30]
[340728504,1729733448521,-1328.48,0.00035616,30]
[340728505,1729733448531,-500.0,0.00035616,10]
[340728506,1729733448541,-500.0,0.00035616,30]
[340728507,1729733448551,-1316.2,0.00035616,30]
[340728508,1729733448564,-1863.35,0.00035616,30]
[340728509,1729733448574,-2446.84331739,0.00035616,30]
[340728510,1729733448588,-1423.26668261,0.00035616,30]
[340728511,1729733448597,-500.0,0.00035616,30]
[340728512,1729733448607,-500.0,0.00035616,30]
[340728513,1729733448616,-500.0,0.00035616,30]
[340728514,1729733448626,-500.0,0.00035616,30]
[340728515,1729733448636,-151.0,0.00035616,14]
[340728516,1729733448646,-151.0,0.00035616,14]
[340728517,1729733448656,-151.0,0.00035616,14]
[340728518,1729733448666,-202.635184,0.00035616,14]
[340728519,1729733448677,-500.0,0.00035616,30]
[340728520,1729733448687,-831.17,0.00035616,30]
[340728521,1729733448697,-691.89,0.00035616,30]
[340728522,1729733448706,-500.0,0.00035616,30]
[340728523,1729733448716,-317.28238902,0.00035616,30]
[340728524,1729733448729,-182.71761098,0.00035616,30]
[340728525,1729733448739,-1089.65,0.00035616,30]
[340728526,1729733448750,-500.0,0.00035616,30]
[340728527,1729733448759,-500.0,0.00035616,30]
[340728528,1729733448770,-500.0,0.00035616,30]
[340728529,1729733448780,-3285.96,0.00035616,30]
[340728530,1729733448789,-500.0,0.00035616,30]
[340728531,1729733448800,-1000.0,0.00035616,30]
[340728532,1729733448810,-500.0,0.00035616,30]
[340728533,1729733448820,-500.0,0.00035616,30]
[340728534,1729733448830,-500.0,0.00035616,30]
[340728535,1729733448840,-564.70535354,0.00035616,30]
[340728536,1729733448850,-1626.08,0.00035616,30]
[340728537,1729733448860,-500.0,0.00035616,30]
[340728538,1729733448870,-1563.4,0.00035616,30]
[340728539,1729733448881,-1387.52,0.00035616,30]
[340728540,1729733448892,-500.0,0.00035616,30]
[340728541,1729733448901,-500.0,0.00035616,30]
[340728542,1729733448911,-500.0,0.00035616,30]
[340728543,1729733448921,-500.0,0.00035616,7]
[340728544,1729733448930,-500.0,0.00035616,30]
[340728545,1729733448939,-1511.07,0.00035616,30]
[340728546,1729733448948,-500.0,0.00035616,30]
[340728547,1729733448958,-696.22,0.00035616,30]
[340728548,1729733448970,-746.13,0.00035616,30]